[Event "Jeux du Barreau 2019"]
[Site "Paris, France"]
[Date "2019.07.10"]
[Round "2.10"]
[White "Danon, Agnes"]
[Black "Lepetit, Jean Pierre"]
[Result "0-1"]
[TimeControl "15+3"]
[WhiteElo "1199"]
[BlackElo "1078"]

1. Nf3 {[%clk 00:14:54]} {[%emt 00:00:12]} Nc6 {[%clk 00:14:56]} {[%emt
00:00:11]} 2. g3 {[%clk 00:14:50]} {[%emt 00:00:06]} e5 {[%clk 00:14:55]}
{[%emt 00:00:03]} 3. Bh3 {[%clk 00:14:40]} {[%emt 00:00:12]} d5 {[%clk
00:14:43]} {[%emt 00:00:16]} 4. g4 {[%clk 00:13:47]} {[%emt 00:00:56]} Be6
{[%clk 00:14:33]} {[%emt 00:00:13]} 5. O-O {[%clk 00:13:37]} {[%emt 00:00:13]}
Qd7 {[%clk 00:14:15]} {[%emt 00:00:23]} 6. Ng5 {[%clk 00:12:34]} {[%emt
00:01:04]} O-O-O {[%clk 00:14:03]} {[%emt 00:00:15]} 7. e4 {[%clk 00:12:00]}
{[%emt 00:00:37]} Be7 {[%clk 00:13:23]} {[%emt 00:00:43]} 8. d3 {[%clk
00:11:40]} {[%emt 00:00:24]} h6 {[%clk 00:13:10]} {[%emt 00:00:16]} 9. Nxe6
{[%clk 00:10:41]} {[%emt 00:00:35]} fxe6 {[%clk 00:13:12]} 10. Nc3 {[%clk
00:10:11]} {[%emt 00:01:01]} Bh4 {[%clk 00:13:10]} {[%emt 00:00:05]} 11. Be3
{[%clk 00:09:22]} {[%emt 00:00:52]} d4 {[%clk 00:13:04]} {[%emt 00:00:10]} 12.
Qf3 {[%clk 00:07:15]} {[%emt 00:02:10]} Nge7 {[%clk 00:12:29]} {[%emt
00:00:38]} 13. Nb5 {[%clk 00:06:59]} {[%emt 00:00:19]} Ng6 {[%clk 00:11:53]}
{[%emt 00:00:39]} 14. Bd2 {[%clk 00:06:25]} {[%emt 00:00:37]} Rhf8 {[%clk
00:11:30]} {[%emt 00:00:26]} 15. Qg2 {[%clk 00:05:39]} {[%emt 00:00:50]} Nf4
{[%clk 00:11:07]} {[%emt 00:00:25]} 16. Bxf4 {[%clk 00:05:39]} {[%emt
00:00:04]} Rxf4 {[%clk 00:10:40]} {[%emt 00:00:30]} 17. b4 {[%clk 00:04:37]}
{[%emt 00:01:05]} Rdf8 {[%clk 00:10:23]} {[%emt 00:00:20]} 18. f3 {[%clk
00:03:58]} {[%emt 00:00:43]} Nxb4 {[%clk 00:10:20]} {[%emt 00:00:06]} 19. Rac1
{[%clk 00:03:09]} {[%emt 00:00:51]} g5 {[%clk 00:09:47]} {[%emt 00:00:37]} 20.
c4 {[%clk 00:02:55]} {[%emt 00:00:17]} Nxd3 {[%clk 00:09:01]} {[%emt 00:00:48]}
21. Nxa7+ {[%clk 00:02:16]} {[%emt 00:00:42]} Kb8 {[%clk 00:09:03]} {[%emt
00:00:02]} 22. Rcd1 {[%clk 00:01:50]} {[%emt 00:00:29]} Nc5 {[%clk 00:08:04]}
{[%emt 00:01:02]} 23. Nb5 {[%clk 00:01:40]} {[%emt 00:00:13]} d3 {[%clk
00:08:01]} {[%emt 00:00:06]} 24. Nc3 {[%clk 00:01:35]} {[%emt 00:00:08]} Qd4+
{[%clk 00:07:42]} {[%emt 00:00:21]} 25. Qf2 {[%clk 00:01:12]} {[%emt 00:00:39]}
Rxf3 {[%clk 00:07:25]} {[%emt 00:00:14]} 26. Rd2 {[%clk 00:00:55]} {[%emt
00:00:19]} Rxf2 {[%clk 00:07:06]} {[%emt 00:00:23]} 27. Rfxf2 {[%clk 00:00:56]}
{[%emt 00:00:02]} Rxf2 {[%clk 00:07:02]} {[%emt 00:00:07]} 28. Rxf2 {[%clk
00:00:57]} {[%emt 00:00:02]} Qxc3 {[%clk 00:06:56]} {[%emt 00:00:08]} 29. Rf8+
{[%clk 00:00:57]} {[%emt 00:00:04]} Ka7 {[%clk 00:06:58]} {[%emt 00:00:01]} 30.
a4 {[%clk 00:00:56]} {[%emt 00:00:05]} d2 {[%clk 00:06:52]} {[%emt 00:00:08]}
31. Rd8 {[%clk 00:00:56]} {[%emt 00:00:02]} Qc1+ {[%clk 00:06:39]} {[%emt
00:00:17]} 32. Bf1 {[%clk 00:00:57]} {[%emt 00:00:03]} d1=Q {[%emt 00:00:14]}
33. Rxd1 {[%clk 00:00:46]} {[%emt 00:00:09]} Qxd1 {[%clk 00:06:33]} {[%emt
00:00:02]} 34. a5 {[%clk 00:00:43]} {[%emt 00:00:07]} Nxe4 {[%clk 00:06:27]}
{[%emt 00:00:08]} 35. Kg2 {[%clk 00:00:33]} {[%emt 00:00:13]} Qxg4+ {[%clk
00:06:22]} {[%emt 00:00:08]} 0-1

[Event "Jeux du Barreau 2019"]
[Site "Paris, France"]
[Date "2019.07.10"]
[Round "3.1"]
[White "Rachid, Danial"]
[Black "Mungunkhuu, Mijgee"]
[Result "0-1"]
[TimeControl "15+3"]
[WhiteElo "2020"]
[BlackElo "2219"]

1. e4 {[%clk 00:15:03]} {[%emt 00:00:02]} d6 {[%clk 00:15:05]} {[%emt
00:00:01]} 2. Nf3 {[%clk 00:14:59]} {[%emt 00:00:08]} Nd7 {[%clk 00:15:07]}
{[%emt 00:00:01]} 3. Bc4 {[%clk 00:14:54]} {[%emt 00:00:07]} h6 {[%clk
00:15:09]} {[%emt 00:00:02]} 4. d3 {[%clk 00:14:54]} {[%emt 00:00:03]} c6
{[%clk 00:15:10]} {[%emt 00:00:01]} 5. Bb3 {[%clk 00:14:56]} {[%emt 00:00:01]}
e5 {[%clk 00:15:11]} {[%emt 00:00:02]} 6. O-O {[%clk 00:14:50]} {[%emt
00:00:08]} Be7 {[%clk 00:15:12]} {[%emt 00:00:01]} 7. h3 {[%clk 00:14:48]}
{[%emt 00:00:05]} Ngf6 {[%clk 00:15:14]} {[%emt 00:00:02]} 8. Nh2 {[%clk
00:14:41]} {[%emt 00:00:10]} Nc5 {[%clk 00:15:15]} {[%emt 00:00:02]} 9. f4
{[%clk 00:14:36]} {[%emt 00:00:07]} Nxb3 {[%clk 00:15:11]} {[%emt 00:00:08]} 10.
axb3 {[%clk 00:14:36]} {[%emt 00:00:03]} Qc7 {[%clk 00:15:12]} {[%emt
00:00:02]} 11. Nc3 {[%clk 00:14:15]} {[%emt 00:00:23]} Bd7 {[%clk 00:15:13]}
{[%emt 00:00:02]} 12. Be3 {[%clk 00:13:33]} {[%emt 00:00:45]} O-O {[%clk
00:15:14]} {[%emt 00:00:03]} 13. f5 {[%clk 00:13:30]} {[%emt 00:00:06]} b5
{[%clk 00:15:13]} {[%emt 00:00:04]} 14. g4 {[%clk 00:13:26]} {[%emt 00:00:07]}
b4 {[%clk 00:15:10]} {[%emt 00:00:06]} 15. Ne2 {[%clk 00:13:20]} {[%emt
00:00:09]} d5 {[%clk 00:15:12]} {[%emt 00:00:01]} 16. Ng3 {[%clk 00:13:13]}
{[%emt 00:00:09]} Nh7 {[%clk 00:15:04]} {[%emt 00:00:10]} 17. Nf3 {[%clk
00:12:31]} {[%emt 00:00:45]} a5 {[%clk 00:14:52]} {[%emt 00:00:15]} 18. h4
{[%clk 00:11:02]} {[%emt 00:01:32]} Qd8 {[%clk 00:14:54]} {[%emt 00:00:02]} 19.
Kg2 {[%clk 00:10:27]} {[%emt 00:00:38]} Bxh4 {[%clk 00:14:43]} {[%emt
00:00:14]} 20. Nxh4 {[%clk 00:10:28]} {[%emt 00:00:02]} Qxh4 {[%clk 00:14:44]}
{[%emt 00:00:02]} 21. Rh1 {[%clk 00:10:29]} {[%emt 00:00:01]} Qf6 {[%clk
00:14:37]} {[%emt 00:00:07]} 22. Nh5 {[%clk 00:10:25]} {[%emt 00:00:10]} Qd6
{[%clk 00:14:33]} {[%emt 00:00:07]} 23. Nxg7 {[%clk 00:10:07]} {[%emt
00:00:22]} Kxg7 {[%clk 00:14:15]} {[%emt 00:00:21]} 24. Rxh6 {[%clk 00:09:07]}
{[%emt 00:01:03]} Qxh6 {[%clk 00:13:39]} {[%emt 00:00:39]} 25. Bxh6+ {[%clk
00:09:04]} {[%emt 00:00:05]} Kxh6 {[%clk 00:13:41]} {[%emt 00:00:01]} 26. Qh1+
{[%clk 00:09:04]} {[%emt 00:00:03]} Kg7 {[%clk 00:13:42]} {[%emt 00:00:02]} 27.
Qh5 {[%clk 00:08:39]} {[%emt 00:00:27]} Rg8 {[%clk 00:13:10]} {[%emt 00:00:36]}
28. Rh1 {[%clk 00:08:34]} {[%emt 00:00:08]} Kf6 {[%clk 00:13:10]} {[%emt
00:00:03]} 29. Qxh7 {[%clk 00:08:14]} {[%emt 00:00:23]} Rxg4+ {[%clk 00:13:11]}
{[%emt 00:00:01]} 30. Kf2 {[%clk 00:07:40]} {[%emt 00:00:36]} Rag8 {[%clk
00:13:10]} {[%emt 00:00:05]} 31. Rh6+ {[%clk 00:07:12]} {[%emt 00:00:31]} Ke7
{[%clk 00:13:12]} 32. f6+ {[%clk 00:07:13]} {[%emt 00:00:02]} Ke6 {[%clk
00:13:14]} {[%emt 00:00:01]} 33. Rh2 {[%clk 00:06:30]} {[%emt 00:00:44]} R8g6
{[%clk 00:12:30]} {[%emt 00:00:50]} 34. Qh5 {[%clk 00:04:41]} {[%emt 00:01:52]}
Kd6 {[%clk 00:10:58]} {[%emt 00:01:35]} 35. exd5 {[%clk 00:04:27]} {[%emt
00:00:17]} cxd5 {[%clk 00:10:57]} {[%emt 00:00:04]} 36. Qh8 {[%clk 00:04:15]}
{[%emt 00:00:14]} Rg8 {[%clk 00:10:59]} 37. Qh6 {[%clk 00:04:08]} {[%emt
00:00:11]} R4g6 {[%clk 00:10:40]} {[%emt 00:00:22]} 38. Qh4 {[%clk 00:03:49]}
{[%emt 00:00:18]} Rg4 {[%clk 00:10:41]} {[%emt 00:00:06]} 39. Qh6 {[%clk
00:03:44]} {[%emt 00:00:08]} R4g6 {[%clk 00:10:42]} {[%emt 00:00:03]} 40. Qe3
{[%clk 00:03:44]} {[%emt 00:00:02]} d4 {[%clk 00:10:43]} {[%emt 00:00:01]} 41.
Qe4 {[%clk 00:02:51]} {[%emt 00:00:57]} Bc6 {[%clk 00:10:45]} {[%emt 00:00:01]}
42. Qh4 {[%clk 00:02:47]} {[%emt 00:00:06]} Rg4 {[%clk 00:10:35]} {[%emt
00:00:14]} 43. Qh6 {[%clk 00:02:43]} {[%emt 00:00:06]} Rf4+ {[%clk 00:09:59]}
{[%emt 00:00:40]} 44. Ke2 {[%clk 00:02:29]} {[%emt 00:00:17]} Rfg4 {[%clk
00:09:34]} {[%emt 00:00:29]} 45. Rf2 {[%clk 00:02:19]} {[%emt 00:00:12]} Bd7
{[%clk 00:09:22]} {[%emt 00:00:15]} 46. Qh7 {[%clk 00:01:54]} {[%emt 00:00:27]}
Be6 {[%clk 00:09:23]} {[%emt 00:00:02]} 47. Qh1 {[%clk 00:01:43]} {[%emt
00:00:14]} Bd5 {[%clk 00:09:24]} {[%emt 00:00:03]} 48. Qa1 {[%clk 00:01:43]}
Ra8 {[%clk 00:09:23]} {[%emt 00:00:06]} 49. Qf1 {[%clk 00:01:26]} {[%emt
00:00:19]} Rag8 {[%clk 00:09:23]} {[%emt 00:00:04]} 50. Qh3 {[%clk 00:01:17]}
{[%emt 00:00:11]} Rg3 {[%clk 00:09:19]} {[%emt 00:00:07]} 51. Qh4 {[%clk
00:00:54]} {[%emt 00:00:26]} Be6 {[%clk 00:09:09]} {[%emt 00:00:14]} 52. Kd2
{[%clk 00:00:42]} {[%emt 00:00:15]} Rg1 {[%clk 04:06:45]} {[%emt 00:00:04]} 53.
c3 {[%clk 00:00:28]} {[%emt 00:00:17]} bxc3+ {[%clk 00:08:38]} {[%emt
00:00:32]} 54. bxc3 {[%clk 00:00:30]} R1g4 {[%clk 00:08:31]} {[%emt 00:00:11]}
55. Qh2 dxc3+ {[%clk 00:08:13]} 56. Kxc3 {[%clk 00:00:25]} {[%emt 00:00:04]}
Rc8+ {[%clk 00:08:15]} {[%emt 00:00:01]} 57. Kd2 {[%clk 00:00:23]} {[%emt
00:00:04]} Bxb3 {[%clk 00:08:14]} {[%emt 00:00:05]} 58. Re2 {[%clk 00:00:19]}
{[%emt 00:00:07]} Rc2+ {[%clk 00:08:11]} {[%emt 00:00:06]} 59. Ke1 {[%clk
00:00:18]} {[%emt 00:00:04]} Rc1+ {[%clk 00:08:12]} {[%emt 00:00:01]} 60. Kd2
{[%clk 00:00:20]} {[%emt 00:00:01]} Rc5 {[%clk 00:08:09]} {[%emt 00:00:06]} 61.
Qh8 {[%clk 00:00:16]} {[%emt 00:00:07]} Rc2+ {[%clk 00:08:00]} {[%emt
00:00:13]} 62. Ke1 {[%clk 00:00:18]} {[%emt 00:00:01]} Rg1+ {[%clk 00:07:38]}
{[%emt 00:00:25]} 63. Kf2 {[%clk 00:00:17]} {[%emt 00:00:02]} Rxe2+ {[%clk
00:07:40]} {[%emt 00:00:03]} 64. Kxe2 {[%clk 00:00:20]} a4 {[%clk 00:07:41]}
{[%emt 00:00:02]} 65. Qd8+ {[%clk 00:00:15]} {[%emt 00:00:07]} Ke6 {[%clk
00:07:43]} 66. Qe7+ {[%clk 00:00:17]} {[%emt 00:00:01]} Kf5 {[%clk 00:07:45]}
{[%emt 00:00:02]} 67. Qd7+ {[%clk 00:00:10]} {[%emt 00:00:10]} Kg6 {[%clk
00:07:36]} {[%emt 00:00:12]} 68. Qa7 {[%clk 00:00:05]} {[%emt 00:00:07]} Rg5
{[%clk 00:07:37]} {[%emt 00:00:03]} 69. Qe3 {[%clk 00:00:06]} {[%emt 00:00:02]}
Kxf6 {[%clk 00:07:38]} {[%emt 00:00:02]} 70. Qf2+ {[%clk 00:00:09]} {[%emt
00:00:01]} Kg6 {[%clk 00:07:39]} {[%emt 00:00:02]} 71. Qb6+ {[%clk 00:00:11]}
Kg7 {[%clk 00:07:37]} {[%emt 00:00:05]} 72. Qb8 {[%clk 00:00:10]} {[%emt
00:00:03]} Be6 {[%clk 00:07:36]} {[%emt 00:00:05]} 73. Kd2 {[%clk 00:00:12]}
{[%emt 00:00:02]} a3 {[%clk 00:07:37]} {[%emt 00:00:01]} 74. Qa7 {[%clk
00:00:12]} {[%emt 00:00:03]} a2 {[%clk 00:07:39]} {[%emt 00:00:01]} 75. Kc3
{[%clk 00:00:12]} {[%emt 00:00:03]} Rg2 {[%clk 00:07:37]} {[%emt 00:00:04]} 76.
Kb4 {[%clk 00:00:06]} {[%emt 00:00:10]} Rb2+ {[%clk 00:07:38]} {[%emt
00:00:02]} 77. Kc3 {[%clk 00:00:08]} {[%emt 00:00:02]} Rb1 {[%clk 00:07:39]}
{[%emt 00:00:01]} 0-1

[Event "Jeux du Barreau 2019"]
[Site "Paris, France"]
[Date "2019.07.10"]
[Round "3.2"]
[White "Vandeweeghe, Simon"]
[Black "Aflalo, Sophie"]
[Result "1-0"]
[TimeControl "15+3"]
[WhiteElo "2036"]
[BlackElo "2094"]

1. d4 {[%clk 00:15:04]} {[%emt 00:00:02]} Nf6 {[%clk 00:14:36]} {[%emt
00:00:31]} 2. Nf3 {[%clk 00:15:01]} {[%emt 00:00:06]} g6 {[%clk 00:14:30]}
{[%emt 00:00:08]} 3. c4 {[%clk 00:14:31]} {[%emt 00:00:32]} c5 {[%clk
00:14:00]} {[%emt 00:00:33]} 4. Nc3 {[%clk 00:14:12]} {[%emt 00:00:23]} Bg7
{[%clk 00:13:55]} {[%emt 00:00:08]} 5. g3 {[%clk 00:13:31]} {[%emt 00:00:44]}
O-O {[%clk 00:13:53]} {[%emt 00:00:05]} 6. Bg2 {[%clk 00:13:33]} cxd4 {[%clk
00:13:28]} {[%emt 00:00:28]} 7. Nxd4 {[%clk 00:13:33]} {[%emt 00:00:03]} Nc6
{[%clk 00:12:51]} {[%emt 00:00:40]} 8. O-O {[%clk 00:13:17]} {[%emt 00:00:19]}
Qb6 {[%clk 00:12:44]} {[%emt 00:00:10]} 9. Nb3 {[%clk 00:12:26]} {[%emt
00:00:54]} d6 {[%clk 00:12:29]} {[%emt 00:00:18]} 10. Be3 {[%clk 00:11:40]}
{[%emt 00:00:50]} Qb4 {[%clk 00:11:53]} {[%emt 00:00:39]} 11. c5 {[%clk
00:06:51]} {[%emt 00:04:51]} d5 {[%clk 00:08:41]} {[%emt 00:03:15]} 12. a3
{[%clk 00:04:41]} {[%emt 00:02:15]} Qg4 {[%clk 00:08:43]} 13. Nxd5 {[%clk
00:02:52]} {[%emt 00:01:52]} Nxd5 {[%clk 00:08:27]} {[%emt 00:00:18]} 14. Bxd5
{[%emt 00:00:35]} Rd8 {[%clk 00:08:18]} {[%emt 00:00:12]} 15. Bxc6 {[%clk
00:02:12]} {[%emt 00:00:11]} Rxd1 {[%clk 00:08:18]} {[%emt 00:00:03]} 16. Raxd1
{[%clk 00:02:13]} {[%emt 00:00:01]} bxc6 {[%clk 00:04:12]} {[%emt 00:04:09]} 17.
Rd8+ {[%emt 00:00:02]} Bf8 18. Bh6 {[%clk 00:01:59]} {[%emt 00:00:18]} Bb7
{[%clk 00:04:07]} {[%emt 00:00:11]} 19. Rfd1 {[%clk 00:01:44]} {[%emt
00:00:18]} Qxe2 {[%clk 00:02:33]} {[%emt 00:01:37]} 20. Bxf8 {[%clk 00:01:20]}
{[%emt 00:00:27]} Rxd8 {[%clk 00:02:10]} {[%emt 00:00:25]} 21. Rxd8 {[%clk
00:01:23]} f6 {[%clk 00:01:54]} {[%emt 00:00:20]} 22. Bh6+ {[%clk 00:01:18]}
{[%emt 00:00:08]} Kf7 {[%clk 00:01:56]} {[%emt 00:00:02]} 23. Rf8+ {[%emt
00:00:02]} 1-0

[Event "Jeux du Barreau 2019"]
[Site "Paris, France"]
[Date "2019.07.10"]
[Round "3.3"]
[White "Gautier, Joel"]
[Black "Chanel, Virgile"]
[Result "0-1"]
[TimeControl "15+3"]
[WhiteElo "1975"]
[BlackElo "1991"]

1. e4 {[%clk 00:15:06]} {[%emt 00:06:01]} d6 {[%clk 00:14:37]} {[%emt
00:00:30]} 2. Nf3 {[%clk 00:14:53]} {[%emt 00:00:16]} Nf6 {[%clk 00:14:36]}
{[%emt 00:00:03]} 3. d3 {[%clk 00:14:53]} {[%emt 00:00:03]} e5 {[%clk
00:14:37]} {[%emt 00:00:02]} 4. g3 {[%clk 00:14:36]} {[%emt 00:00:20]} Be7
{[%clk 00:14:38]} {[%emt 00:00:02]} 5. Bg2 {[%clk 00:14:37]} {[%emt 00:00:02]}
O-O {[%clk 00:14:39]} {[%emt 00:00:02]} 6. O-O {[%clk 00:14:39]} {[%emt
00:00:02]} c6 {[%clk 00:14:40]} {[%emt 00:00:01]} 7. h3 {[%clk 00:14:32]}
{[%emt 00:00:10]} Nbd7 {[%clk 00:14:21]} {[%emt 00:00:23]} 8. Re1 {[%clk
00:14:23]} {[%emt 00:00:12]} Qc7 {[%clk 00:14:22]} {[%emt 00:00:02]} 9. c3
{[%clk 00:14:19]} {[%emt 00:00:07]} b5 {[%clk 00:14:21]} {[%emt 00:00:04]} 10.
d4 {[%clk 00:14:20]} {[%emt 00:00:02]} a5 {[%clk 00:14:18]} {[%emt 00:00:07]}
11. Be3 {[%clk 00:13:31]} {[%emt 00:00:52]} Re8 {[%clk 00:12:21]} {[%emt
00:02:00]} 12. Nbd2 {[%clk 00:13:04]} {[%emt 00:00:30]} c5 {[%clk 00:12:22]}
{[%emt 00:00:03]} 13. a4 {[%clk 00:12:43]} {[%emt 00:00:23]} b4 {[%clk
00:11:49]} {[%emt 00:00:36]} 14. d5 {[%clk 00:10:59]} {[%emt 00:01:47]} Rf8
{[%clk 00:11:27]} {[%emt 00:00:25]} 15. Nc4 {[%clk 00:10:44]} {[%emt 00:00:18]}
Ba6 {[%clk 00:10:27]} {[%emt 00:01:03]} 16. Nfd2 {[%clk 00:10:21]} {[%emt
00:00:26]} Nb6 {[%clk 00:09:34]} {[%emt 00:00:56]} 17. Nxb6 {[%emt 00:03:39]}
Qxb6 {[%clk 00:09:34]} {[%emt 00:00:02]} 18. Bf1 {[%clk 00:06:38]} {[%emt
00:00:11]} Nd7 {[%clk 00:08:59]} {[%emt 00:00:38]} 19. Bxa6 {[%clk 00:05:55]}
{[%emt 00:00:46]} Qxa6 {[%clk 00:09:00]} {[%emt 00:00:03]} 20. cxb4 {[%clk
00:05:27]} {[%emt 00:00:31]} cxb4 {[%clk 00:08:48]} {[%emt 00:00:15]} 21. b3
{[%clk 00:05:29]} {[%emt 00:00:01]} Rac8 {[%clk 00:07:30]} {[%emt 00:01:20]} 22.
Nc4 {[%clk 00:05:30]} {[%emt 00:00:02]} f5 {[%clk 00:07:32]} {[%emt 00:00:01]}
23. exf5 {[%clk 00:04:39]} {[%emt 00:00:54]} Rxf5 {[%clk 00:07:34]} 24. Qg4
{[%clk 00:04:40]} {[%emt 00:00:02]} Rcf8 {[%clk 00:07:36]} 25. Red1 {[%clk
00:03:48]} {[%emt 00:00:55]} g6 {[%clk 00:06:37]} {[%emt 00:01:03]} 26. Qe2
{[%clk 00:02:56]} {[%emt 00:00:55]} Bd8 {[%clk 00:03:38]} {[%emt 00:03:02]} 27.
Qd3 {[%clk 00:02:01]} {[%emt 00:00:58]} R5f6 {[%clk 00:01:57]} {[%emt
00:01:45]} 28. Nxe5 {[%clk 00:01:52]} {[%emt 00:00:12]} dxe5 {[%clk 00:01:59]}
{[%emt 00:00:01]} 29. Qe4 {[%clk 00:01:36]} {[%emt 00:00:19]} Bb6 {[%clk
00:01:54]} {[%emt 00:00:08]} 30. Bxb6 {[%clk 00:00:55]} {[%emt 00:00:44]} Qxb6
{[%clk 00:01:55]} {[%emt 00:00:01]} 31. Rac1 {[%clk 00:00:32]} {[%emt
00:00:27]} Rxf2 {[%clk 00:01:38]} {[%emt 00:00:20]} 32. Kh1 {[%clk 00:00:27]}
{[%emt 00:00:09]} Qf6 {[%clk 00:01:21]} {[%emt 00:00:20]} 33. Qc4 {[%clk
00:00:24]} {[%emt 00:00:06]} Qf3+ {[%clk 00:01:19]} {[%emt 00:00:04]} 0-1

[Event "Jeux du Barreau 2019"]
[Site "Paris, France"]
[Date "2019.07.10"]
[Round "3.4"]
[White "Spirta, Boris"]
[Black "Leblic, Maximilien"]
[Result "1-0"]
[TimeControl "15+3"]
[WhiteElo "1811"]
[BlackElo "1289"]

1. e4 {[%clk 00:15:04]} e5 {[%clk 00:15:05]} {[%emt 00:00:01]} 2. Nf3 {[%clk
00:15:06]} {[%emt 00:00:01]} Nc6 {[%clk 00:15:07]} {[%emt 00:00:01]} 3. Bc4
{[%clk 00:15:07]} {[%emt 00:00:02]} Nd4 {[%clk 00:14:58]} {[%emt 00:00:12]} 4.
Nxd4 {[%clk 00:14:34]} {[%emt 00:00:36]} exd4 {[%clk 00:15:00]} {[%emt
00:00:02]} 5. O-O {[%clk 00:13:40]} {[%emt 00:00:56]} Bc5 {[%clk 00:14:40]}
{[%emt 00:00:24]} 6. Bxf7+ {[%clk 00:12:25]} {[%emt 00:01:17]} Kxf7 {[%clk
00:14:33]} {[%emt 00:00:10]} 7. Qh5+ {[%clk 00:12:26]} {[%emt 00:00:02]} g6
{[%clk 00:14:06]} {[%emt 00:00:31]} 8. Qxc5 {[%clk 00:12:03]} {[%emt 00:00:25]}
Ne7 {[%clk 00:13:07]} {[%emt 00:01:03]} 9. Qxd4 {[%clk 00:10:50]} {[%emt
00:01:15]} Nc6 {[%clk 00:13:09]} {[%emt 00:00:02]} 10. Qe3 {[%clk 00:07:27]}
{[%emt 00:03:25]} d6 {[%clk 00:12:56]} {[%emt 00:00:17]} 11. b3 {[%clk
00:05:37]} {[%emt 00:01:53]} Qf6 {[%clk 00:11:49]} {[%emt 00:01:10]} 12. Qf3
{[%clk 00:05:14]} {[%emt 00:00:26]} Qxf3 {[%clk 00:11:17]} {[%emt 00:00:35]} 13.
gxf3 {[%clk 00:05:14]} {[%emt 00:00:03]} Nb4 {[%clk 00:11:19]} {[%emt
00:00:01]} 14. Na3 {[%clk 00:05:11]} {[%emt 00:00:06]} Bh3 {[%clk 00:10:23]}
{[%emt 00:00:58]} 15. Re1 {[%clk 00:05:02]} {[%emt 00:00:10]} Rae8 {[%clk
00:09:33]} {[%emt 00:00:56]} 16. Bb2 {[%clk 00:04:59]} {[%emt 00:00:06]} Rhf8
{[%clk 00:09:32]} {[%emt 00:00:04]} 17. Re3 {[%clk 00:04:40]} {[%emt 00:00:22]}
Bd7 {[%clk 00:09:07]} {[%emt 00:00:28]} 18. c3 {[%clk 00:03:45]} {[%emt
00:00:58]} Nc6 {[%clk 00:09:09]} {[%emt 00:00:01]} 19. d4 {[%clk 00:03:26]}
{[%emt 00:00:22]} Kg8 {[%clk 00:08:46]} {[%emt 00:00:26]} 20. Rae1 {[%clk
00:03:27]} {[%emt 00:00:02]} Ne7 {[%clk 00:07:52]} {[%emt 00:00:58]} 21. Nc4
{[%clk 00:03:20]} {[%emt 00:00:10]} b5 {[%clk 00:07:36]} {[%emt 00:00:19]} 22.
Nd2 {[%clk 00:03:11]} {[%emt 00:00:12]} c6 {[%clk 00:07:18]} {[%emt 00:00:20]}
23. e5 {[%clk 00:03:06]} {[%emt 00:00:10]} Nf5 {[%clk 00:07:13]} {[%emt
00:00:07]} 24. Re4 {[%clk 00:02:47]} {[%emt 00:00:22]} d5 {[%clk 00:06:54]}
{[%emt 00:00:21]} 25. R4e2 {[%clk 00:02:21]} {[%emt 00:00:29]} Nh4 {[%clk
00:06:43]} {[%emt 00:00:14]} 26. e6 {[%clk 00:02:00]} {[%emt 00:00:25]} Bc8
{[%clk 00:05:15]} {[%emt 00:01:31]} 27. e7 {[%clk 00:01:27]} {[%emt 00:00:36]}
Rf7 {[%clk 00:05:06]} {[%emt 00:00:11]} 28. Ba3 {[%clk 00:01:29]} {[%emt
00:00:02]} Rxf3 {[%clk 00:04:33]} {[%emt 00:00:36]} 29. Re6 {[%clk 00:01:24]}
{[%emt 00:00:08]} Bxe6 {[%clk 00:04:21]} {[%emt 00:00:15]} 30. Rxe6 {[%clk
00:01:21]} {[%emt 00:00:05]} Rd3 {[%clk 00:03:00]} {[%emt 00:01:25]} 31. Rf6
{[%clk 00:01:03]} {[%emt 00:00:21]} Rxe7 {[%clk 00:02:18]} {[%emt 00:00:44]} 32.
Bxe7 {[%clk 00:00:59]} {[%emt 00:00:08]} Rxd2 {[%clk 00:02:14]} {[%emt
00:00:08]} 33. f3 {[%clk 00:00:50]} {[%emt 00:00:12]} Nf5 {[%clk 00:02:06]}
{[%emt 00:00:11]} 34. Bc5 {[%clk 00:00:45]} {[%emt 00:00:08]} Kg7 {[%clk
00:02:01]} {[%emt 00:00:08]} 35. Rxc6 {[%clk 00:00:47]} {[%emt 00:00:01]} h5
{[%clk 00:01:50]} {[%emt 00:00:14]} 36. c4 {[%clk 00:00:48]} {[%emt 00:00:02]}
bxc4 {[%clk 00:01:41]} {[%emt 00:00:12]} 37. bxc4 {[%clk 00:00:50]} {[%emt
00:00:01]} Nxd4 {[%clk 00:01:42]} {[%emt 00:00:02]} 38. Bxd4+ {[%clk 00:00:50]}
{[%emt 00:00:04]} Rxd4 {[%clk 00:01:44]} {[%emt 00:00:01]} 39. cxd5 {[%clk
00:00:51]} {[%emt 00:00:02]} Rxd5 {[%clk 00:01:46]} {[%emt 00:00:01]} 40. Rc7+
{[%clk 00:00:53]} Kf6 {[%clk 00:01:48]} 41. Rxa7 {[%clk 00:00:54]} {[%emt
00:00:02]} Kf5 {[%clk 00:01:50]} 42. a4 {[%clk 00:00:56]} {[%emt 00:00:01]} Kf4
{[%clk 00:01:51]} {[%emt 00:00:02]} 43. Kf2 {[%clk 00:00:56]} {[%emt 00:00:02]}
Rd2+ {[%clk 00:01:52]} {[%emt 00:00:02]} 44. Ke1 {[%clk 00:00:58]} {[%emt
00:00:01]} Rd3 {[%clk 00:01:54]} {[%emt 00:00:02]} 45. a5 {[%clk 00:00:57]}
{[%emt 00:00:04]} Kxf3 {[%clk 00:01:55]} {[%emt 00:00:02]} 46. a6 {[%clk
00:00:55]} {[%emt 00:00:06]} Ra3 {[%clk 00:01:57]} 47. Ra8 {[%clk 00:00:56]}
{[%emt 00:00:01]} Ke3 {[%clk 00:01:58]} {[%emt 00:00:02]} 48. Kd1 {[%clk
00:00:57]} Kd3 {[%clk 00:02:00]} {[%emt 00:00:02]} 49. Kc1 {[%clk 00:00:57]}
{[%emt 00:00:03]} Kc3 {[%clk 00:01:43]} {[%emt 00:00:20]} 50. Kb1 {[%clk
00:00:57]} Ra5 {[%clk 00:01:25]} {[%emt 00:00:23]} 51. a7 {[%clk 00:00:54]}
{[%emt 00:00:06]} g5 {[%clk 00:01:22]} {[%emt 00:00:06]} 52. Rc8+ {[%clk
00:00:55]} {[%emt 00:00:01]} Kb3 {[%clk 00:01:23]} {[%emt 00:00:02]} 53. a8=Q
{[%clk 00:00:54]} {[%emt 00:00:04]} 1-0